[Event "Blixt-SM 2021"]
[Site "Elite Hotel Marina Plaza, Kungstorget 6, Helsingborg, Sweden"]
[Date "2021.11.14"]
[Round "7.2"]
[White "Svensson, Mikael"]
[Black "Nilsson, Patrik"]
[Result "1-0"]
[TimeControl "3 minutes + 2 seconds per move."]
[WhiteFideId "1716433"]
[BlackFideId "1708171"]
[WhiteElo "2073"]
[BlackElo "2143"]

1. d4 {[%clk 00:03:02]} {[%emt 00:00:02]} f5 {[%clk 00:03:03]} {[%emt
00:00:02]} 2. Nf3 {[%clk 00:03:01]} {[%emt 00:00:02]} Nf6 {[%clk 00:03:05]} 3.
e3 {[%clk 00:03:02]} g6 {[%clk 00:03:04]} {[%emt 00:00:03]} 4. Be2 {[%clk
00:03:03]} Bg7 {[%clk 00:03:05]} 5. O-O {[%clk 00:03:03]} {[%emt 00:00:02]} O-O
{[%clk 00:03:06]} {[%emt 00:00:02]} 6. c4 {[%clk 00:03:04]} {[%emt 00:00:01]}
d6 {[%clk 00:03:06]} {[%emt 00:00:01]} 7. Nc3 {[%clk 00:03:02]} {[%emt
00:00:04]} c6 {[%clk 00:02:59]} {[%emt 00:00:09]} 8. b4 {[%clk 00:03:02]}
{[%emt 00:00:02]} Qc7 {[%clk 00:02:51]} {[%emt 00:00:09]} 9. Qb3 {[%clk
00:02:58]} {[%emt 00:00:06]} Kh8 {[%clk 00:02:43]} {[%emt 00:00:10]} 10. Bb2
{[%clk 00:02:59]} {[%emt 00:00:01]} e5 {[%clk 00:02:41]} {[%emt 00:00:04]} 11.
c5 {[%clk 00:02:48]} {[%emt 00:00:13]} e4 {[%clk 00:02:40]} {[%emt 00:00:03]}
12. cxd6 {[%clk 00:02:47]} {[%emt 00:00:03]} Qxd6 {[%clk 00:02:39]} {[%emt
00:00:03]} 13. Ne5 {[%clk 00:02:44]} {[%emt 00:00:05]} Be6 {[%clk 00:02:23]}
{[%emt 00:00:18]} 14. Bc4 {[%clk 00:02:45]} {[%emt 00:00:01]} Nd5 {[%clk
00:02:22]} {[%emt 00:00:03]} 15. Bxd5 {[%clk 00:02:25]} {[%emt 00:00:22]} cxd5
{[%clk 00:01:54]} {[%emt 00:00:30]} 16. Rac1 {[%clk 00:02:21]} {[%emt
00:00:06]} Nd7 {[%clk 00:01:25]} {[%emt 00:00:32]} 17. Nb5 {[%clk 00:02:21]}
{[%emt 00:00:02]} Qe7 {[%clk 00:01:25]} {[%emt 00:00:02]} 18. Nxd7 {[%clk
00:02:12]} {[%emt 00:00:11]} Qxd7 {[%clk 00:01:16]} {[%emt 00:00:10]} 19. a4
{[%clk 00:01:50]} {[%emt 00:00:23]} a6 {[%clk 00:01:15]} {[%emt 00:00:04]} 20.
Nc7 {[%clk 00:01:47]} {[%emt 00:00:05]} Rac8 {[%clk 00:01:15]} {[%emt
00:00:03]} 21. Nxe6 {[%clk 00:01:47]} {[%emt 00:00:01]} Qxe6 {[%clk 00:01:16]}
22. Rc5 {[%clk 00:01:47]} {[%emt 00:00:02]} Rfd8 {[%clk 00:01:00]} {[%emt
00:00:18]} 23. Rfc1 {[%clk 00:01:44]} {[%emt 00:00:05]} Rxc5 {[%clk 00:00:41]}
{[%emt 00:00:22]} 24. Rxc5 {[%clk 00:01:38]} {[%emt 00:00:07]} Bf8 {[%clk
00:00:34]} {[%emt 00:00:09]} 25. Rc3 {[%clk 00:01:25]} {[%emt 00:00:14]} Rd6
{[%clk 00:00:28]} {[%emt 00:00:09]} 26. b5 {[%clk 00:01:20]} {[%emt 00:00:08]}
axb5 {[%clk 00:00:26]} {[%emt 00:00:04]} 27. axb5 {[%clk 00:01:17]} {[%emt
00:00:04]} Qd7 {[%clk 00:00:20]} {[%emt 00:00:08]} 28. Ba3 {[%clk 00:01:14]}
{[%emt 00:00:05]} Rf6 {[%clk 00:00:21]} {[%emt 00:00:02]} 29. Bxf8 Rxf8 {[%clk
00:00:22]} 30. Rc5 {[%clk 00:01:07]} {[%emt 00:00:07]} Rd8 {[%clk 00:00:23]} 31.
b6 {[%clk 00:01:07]} {[%emt 00:00:02]} Rc8 {[%clk 00:00:07]} {[%emt 00:00:18]}
32. Qc2 {[%clk 00:00:59]} {[%emt 00:00:10]} Rxc5 {[%clk 00:00:06]} {[%emt
00:00:03]} 33. Qxc5 {[%clk 00:01:00]} {[%emt 00:00:01]} Qa4 {[%clk 00:00:05]}
{[%emt 00:00:03]} 34. Qf8# {[%clk 00:01:00]} {[%emt 00:00:02]} 1-0

[Event "Blixt-SM 2021"]
[Site "Elite Hotel Marina Plaza, Kungstorget 6, Helsingborg, Sweden"]
[Date "2021.11.14"]
[Round "8.9"]
[White "Rosell, Tomas"]
[Black "Hansen, Anders"]
[Result "1-0"]
[TimeControl "3 minutes + 2 seconds per move."]
[WhiteFideId "1707132"]
[BlackFideId "1708155"]
[WhiteElo "2070"]
[BlackElo "2027"]

1. e4 {[%emt 00:15:41]} d6 {[%emt 00:00:03]} 2. d4 {[%emt 00:00:02]} Nf6 3. Nc3
e5 4. Nf3 {[%emt 00:00:02]} Nbd7 {[%emt 00:00:02]} 5. Bc4 Be7 {[%emt 00:00:13]}
6. O-O {[%emt 00:00:02]} c6 {[%emt 00:00:04]} 7. a4 {[%emt 00:00:02]} O-O
{[%emt 00:00:02]} 8. Re1 h6 {[%emt 00:00:16]} 9. Ba2 {[%emt 00:00:03]} b6
{[%emt 00:00:21]} 10. dxe5 {[%emt 00:00:06]} dxe5 {[%emt 00:00:09]} 11. Nh4
{[%emt 00:00:10]} Qc7 {[%emt 00:00:03]} 12. Nf5 {[%emt 00:00:08]} Nc5 {[%emt
00:00:27]} 13. Nxh6+ {[%emt 00:00:30]} gxh6 {[%emt 00:00:07]} 14. Bxh6 {[%emt
00:00:02]} Bg4 {[%emt 00:00:06]} 15. Qd2 {[%emt 00:00:05]} Bh5 {[%emt
00:00:09]} 16. Qg5+ {[%emt 00:00:02]} Bg6 {[%emt 00:00:01]} 17. Qxg6+ {[%emt
00:00:01]} 1-0

[Event "Blixt-SM 2021"]
[Site "Elite Hotel Marina Plaza, Kungstorget 6, Helsingborg, Sweden"]
[Date "2021.11.14"]
[Round "10.8"]
[White "Terochin, Piotr"]
[Black "Svensson, Mikael"]
[Result "1-0"]
[TimeControl "3 minutes + 2 seconds per move."]
[WhiteFideId "1113682"]
[BlackFideId "1716433"]
[WhiteElo "1779"]
[BlackElo "2073"]

1. e4 {[%clk 00:03:02]} {[%emt 00:00:01]} e6 {[%clk 00:03:03]} 2. d4 {[%clk
00:03:03]} {[%emt 00:00:01]} d5 {[%clk 00:03:05]} 3. Nd2 {[%clk 00:03:04]} h6
{[%clk 00:03:05]} {[%emt 00:00:02]} 4. Ngf3 {[%clk 00:03:00]} {[%emt 00:00:05]}
Nf6 {[%clk 00:03:05]} {[%emt 00:00:02]} 5. e5 {[%clk 00:03:00]} {[%emt
00:00:02]} Nfd7 {[%clk 00:03:06]} {[%emt 00:00:01]} 6. Bd3 {[%clk 00:03:00]}
{[%emt 00:00:02]} c5 {[%clk 00:03:07]} 7. c3 {[%clk 00:03:01]} Nc6 {[%clk
00:03:07]} {[%emt 00:00:04]} 8. O-O {[%clk 00:02:54]} {[%emt 00:00:09]} g5
{[%clk 00:02:57]} {[%emt 00:00:11]} 9. Ne1 {[%clk 00:02:01]} {[%emt 00:00:55]}
cxd4 {[%clk 00:02:53]} {[%emt 00:00:06]} 10. cxd4 {[%clk 00:02:02]} {[%emt
00:00:01]} Nxd4 {[%clk 00:02:51]} {[%emt 00:00:05]} 11. f4 {[%clk 00:02:03]}
Bc5 {[%clk 00:02:28]} {[%emt 00:00:25]} 12. Kh1 {[%clk 00:02:04]} gxf4 {[%clk
00:02:15]} {[%emt 00:00:14]} 13. Nb3 {[%clk 00:02:00]} {[%emt 00:00:06]} Nxb3
{[%clk 00:02:11]} {[%emt 00:00:07]} 14. axb3 {[%clk 00:01:51]} {[%emt
00:00:10]} Nxe5 {[%clk 00:02:02]} {[%emt 00:00:12]} 15. Bb5+ {[%clk 00:01:48]}
{[%emt 00:00:05]} Bd7 {[%clk 00:02:00]} {[%emt 00:00:04]} 16. Qe2 {[%clk
00:01:44]} {[%emt 00:00:06]} Be3 {[%clk 00:01:42]} {[%emt 00:00:20]} 17. Bxe3
{[%clk 00:01:39]} {[%emt 00:00:07]} fxe3 {[%clk 00:01:42]} {[%emt 00:00:01]} 18.
Bxd7+ {[%clk 00:01:38]} {[%emt 00:00:03]} Qxd7 {[%clk 00:01:41]} {[%emt
00:00:03]} 19. Qxe3 {[%clk 00:01:39]} {[%emt 00:00:02]} Nc6 {[%clk 00:01:39]}
{[%emt 00:00:04]} 20. Qc5 {[%clk 00:01:27]} {[%emt 00:00:14]} Qe7 {[%clk
00:01:34]} {[%emt 00:00:06]} 21. Qc3 {[%clk 00:01:22]} {[%emt 00:00:07]} Rg8
{[%clk 00:01:30]} {[%emt 00:00:07]} 22. Rc1 {[%clk 00:00:59]} {[%emt 00:00:25]}
Qg5 {[%clk 00:01:25]} {[%emt 00:00:07]} 23. b4 {[%clk 00:00:58]} {[%emt
00:00:02]} Nxb4 {[%clk 00:01:18]} {[%emt 00:00:09]} 24. Qxb4 {[%clk 00:00:52]}
{[%emt 00:00:08]} Qxc1 {[%clk 00:01:19]} {[%emt 00:00:01]} 25. Qxb7 {[%clk
00:00:53]} {[%emt 00:00:01]} f6 {[%clk 00:00:11]} {[%emt 00:01:10]} 26. Qxa8+
{[%clk 00:00:52]} {[%emt 00:00:03]} Kf7 {[%clk 00:00:13]} 27. Qxa7+ {[%clk
00:00:49]} {[%emt 00:00:06]} Kg6 {[%clk 00:00:12]} {[%emt 00:00:02]} 28. Qd4
{[%clk 00:00:44]} {[%emt 00:00:06]} e5 {[%clk 00:00:08]} {[%emt 00:00:06]} 29.
Qxd5 {[%clk 00:00:40]} {[%emt 00:00:06]} Rc8 {[%clk 00:00:09]} {[%emt
00:00:01]} 30. b3 {[%clk 00:00:31]} {[%emt 00:00:11]} Qb2 {[%clk 00:00:07]}
{[%emt 00:00:05]} 31. Qe6 {[%clk 00:00:25]} {[%emt 00:00:07]} Rc1 {[%clk
00:00:05]} {[%emt 00:00:04]} 32. Qxf6+ {[%clk 00:00:23]} {[%emt 00:00:04]} Kh7
{[%clk 00:00:05]} {[%emt 00:00:03]} 33. h3 {[%clk 00:00:13]} {[%emt 00:00:12]}
Qd2 {[%clk 00:00:04]} {[%emt 00:00:03]} 34. Qf7+ {[%clk 00:00:14]} {[%emt
00:00:02]} Kh8 {[%clk 00:00:05]} 35. Qf6+ {[%clk 00:00:10]} {[%emt 00:00:06]}
Kh7 {[%clk 00:00:06]} 36. Qxe5 {[%clk 00:00:11]} {[%emt 00:00:01]} Rb1 {[%clk
00:00:03]} {[%emt 00:00:05]} 37. Rf7+ {[%clk 00:00:11]} {[%emt 00:00:02]} Kg6
{[%clk 00:00:03]} {[%emt 00:00:02]} 38. Rg7# {[%clk 00:00:12]} {[%emt
00:00:01]} 1-0

[Event "Blixt-SM 2021"]
[Site "Elite Hotel Marina Plaza, Kungstorget 6, Helsingborg, Sweden"]
[Date "2021.11.14"]
[Round "12.6"]
[White "Rosell, Tomas"]
[Black "Troedsson, Anton"]
[Result "1-0"]
[TimeControl "3 minutes + 2 seconds per move."]
[WhiteFideId "1707132"]
[BlackFideId "1746006"]
[WhiteElo "2070"]
[BlackElo "2104"]

1. e4 {[%clk 00:03:03]} {[%emt 00:01:35]} c6 {[%clk 00:03:04]} 2. d4 {[%clk
00:03:04]} d5 {[%clk 00:03:05]} 3. Nc3 {[%clk 00:03:04]} {[%emt 00:00:02]} dxe4
{[%clk 00:03:06]} {[%emt 00:00:02]} 4. Nxe4 {[%clk 00:03:05]} {[%emt 00:00:01]}
Nf6 {[%clk 00:03:07]} 5. Nxf6+ exf6 {[%clk 00:03:08]} 6. c3 {[%clk 00:03:07]}
{[%emt 00:00:01]} Bd6 {[%clk 00:03:08]} {[%emt 00:00:01]} 7. Bd3 {[%clk
00:03:08]} O-O {[%clk 00:03:09]} {[%emt 00:00:02]} 8. Qc2 {[%clk 00:03:09]}
Re8+ {[%clk 00:03:10]} 9. Be3 {[%clk 00:03:10]} h5 {[%clk 00:03:10]} {[%emt
00:00:02]} 10. O-O-O {[%clk 00:03:09]} {[%emt 00:00:03]} Be6 {[%clk 00:03:08]}
{[%emt 00:00:04]} 11. Kb1 {[%clk 00:02:56]} {[%emt 00:00:15]} Qa5 {[%clk
00:03:03]} {[%emt 00:00:07]} 12. b3 {[%clk 00:02:47]} {[%emt 00:00:11]} b5
{[%clk 00:02:59]} {[%emt 00:00:07]} 13. Ne2 {[%clk 00:02:47]} {[%emt 00:00:02]}
Qc7 {[%clk 00:02:56]} {[%emt 00:00:05]} 14. g3 {[%clk 00:02:40]} {[%emt
00:00:09]} Nd7 {[%clk 00:02:51]} {[%emt 00:00:07]} 15. h3 {[%clk 00:02:30]}
{[%emt 00:00:12]} a5 {[%clk 00:02:50]} {[%emt 00:00:03]} 16. Nf4 {[%clk
00:02:30]} {[%emt 00:00:03]} a4 {[%clk 00:02:42]} {[%emt 00:00:11]} 17. b4
{[%clk 00:02:25]} {[%emt 00:00:07]} Nb6 {[%clk 00:02:34]} {[%emt 00:00:10]} 18.
Nxh5 {[%clk 00:02:11]} {[%emt 00:00:15]} Bd5 {[%clk 00:02:27]} {[%emt
00:00:09]} 19. Rhg1 {[%clk 00:02:06]} {[%emt 00:00:07]} Bf3 {[%clk 00:02:26]}
{[%emt 00:00:03]} 20. g4 {[%clk 00:01:56]} {[%emt 00:00:12]} Bxd1 21. Qxd1
{[%clk 00:01:57]} Nd5 {[%clk 00:02:15]} {[%emt 00:00:02]} 22. Bd2 {[%clk
00:01:31]} {[%emt 00:00:27]} g6 {[%clk 00:02:14]} {[%emt 00:00:03]} 23. g5
{[%clk 00:01:21]} {[%emt 00:00:12]} f5 {[%clk 00:02:08]} {[%emt 00:00:09]} 24.
Nf6+ {[%clk 00:01:20]} {[%emt 00:00:04]} Nxf6 {[%clk 00:02:08]} {[%emt
00:00:01]} 25. gxf6 {[%clk 00:01:21]} Bf4 {[%clk 00:02:05]} {[%emt 00:00:06]}
26. Bxf5 {[%clk 00:01:06]} {[%emt 00:00:16]} Qd6 {[%clk 00:01:41]} {[%emt
00:00:26]} 27. Bxg6 {[%clk 00:01:00]} {[%emt 00:00:09]} fxg6 {[%clk 00:01:09]}
{[%emt 00:00:34]} 28. Rxg6+ {[%clk 00:01:01]} Kf7 {[%clk 00:01:09]} {[%emt
00:00:02]} 29. Qh5 {[%clk 00:00:49]} {[%emt 00:00:14]} Rh8 {[%clk 00:00:26]}
{[%emt 00:00:45]} 30. Rg7+ {[%clk 00:00:48]} {[%emt 00:00:03]} Ke6 {[%clk
00:00:24]} {[%emt 00:00:05]} 31. Qg4+ {[%clk 00:00:49]} {[%emt 00:00:02]} Kd5
{[%clk 00:00:22]} {[%emt 00:00:04]} 32. Bxf4 {[%clk 00:00:19]} {[%emt
00:00:32]} Qxf6 {[%clk 00:00:18]} {[%emt 00:00:05]} 33. Rd7+ {[%clk 00:00:20]}
{[%emt 00:00:01]} Kc4 {[%clk 00:00:12]} {[%emt 00:00:09]} 34. Qe2+ {[%clk
00:00:21]} Kxc3 {[%clk 00:00:11]} {[%emt 00:00:03]} 35. Qc2+ {[%clk 00:00:13]}
{[%emt 00:00:10]} Kxb4 {[%clk 00:00:10]} {[%emt 00:00:03]} 36. Bd2+ {[%clk
00:00:14]} Ka3 {[%clk 00:00:11]} {[%emt 00:00:01]} 37. Qb2# {[%clk 00:00:16]}
{[%emt 00:00:01]} 1-0

[Event "Blixt-SM 2021"]
[Site "Elite Hotel Marina Plaza, Kungstorget 6, Helsingborg, Sweden"]
[Date "2021.11.14"]
[Round "1.9"]
[White "Kvisth, Bengt"]
[Black "Frisk, Ellinor"]
[Result "0-1"]
[TimeControl "3 minutes + 2 seconds per move."]
[BlackTitle "WIM"]
[WhiteFideId "1728822"]
[BlackFideId "1708481"]
[WhiteElo "1697"]
[BlackElo "2142"]

1. d4 {[%clk 00:03:02]} Nf6 {[%clk 00:03:03]} {[%emt 00:00:02]} 2. c4 {[%clk
00:03:02]} {[%emt 00:00:02]} c5 {[%clk 00:03:04]} {[%emt 00:00:02]} 3. d5
{[%clk 00:02:58]} {[%emt 00:00:05]} b5 {[%clk 00:03:04]} {[%emt 00:00:02]} 4.
cxb5 {[%clk 00:02:55]} {[%emt 00:00:05]} a6 {[%clk 00:03:03]} {[%emt 00:00:04]}
5. b6 {[%clk 00:02:55]} {[%emt 00:00:02]} g6 {[%clk 00:02:55]} {[%emt
00:00:09]} 6. Nc3 {[%clk 00:02:54]} {[%emt 00:00:02]} Bg7 {[%clk 00:02:53]}
{[%emt 00:00:05]} 7. Nf3 {[%clk 00:02:47]} {[%emt 00:00:09]} O-O {[%clk
00:02:53]} {[%emt 00:00:02]} 8. e4 {[%clk 00:02:45]} {[%emt 00:00:03]} d6
{[%clk 00:02:52]} {[%emt 00:00:04]} 9. h3 {[%clk 00:02:38]} {[%emt 00:00:09]}
Nbd7 {[%clk 00:02:40]} {[%emt 00:00:13]} 10. Bd3 {[%clk 00:02:21]} {[%emt
00:00:18]} Nxb6 {[%clk 00:02:39]} {[%emt 00:00:04]} 11. O-O {[%clk 00:02:16]}
{[%emt 00:00:06]} Nfd7 {[%clk 00:02:16]} {[%emt 00:00:26]} 12. Bd2 {[%clk
00:01:59]} {[%emt 00:00:19]} Ne5 {[%clk 00:02:11]} {[%emt 00:00:08]} 13. Nxe5
{[%clk 00:01:56]} {[%emt 00:00:04]} Bxe5 {[%clk 00:02:12]} {[%emt 00:00:01]} 14.
Rc1 {[%clk 00:01:37]} {[%emt 00:00:22]} a5 {[%clk 00:01:42]} {[%emt 00:00:32]}
15. Bh6 {[%clk 00:01:27]} {[%emt 00:00:11]} Re8 {[%clk 00:01:34]} {[%emt
00:00:10]} 16. Bb5 {[%clk 00:01:23]} {[%emt 00:00:06]} Bd7 {[%clk 00:01:35]}
{[%emt 00:00:01]} 17. Bxd7 {[%clk 00:01:21]} {[%emt 00:00:04]} Qxd7 {[%clk
00:01:36]} {[%emt 00:00:02]} 18. b3 {[%clk 00:01:14]} {[%emt 00:00:08]} a4
{[%clk 00:01:28]} {[%emt 00:00:10]} 19. Be3 {[%clk 00:00:56]} {[%emt 00:00:20]}
axb3 {[%clk 00:01:28]} {[%emt 00:00:03]} 20. axb3 {[%clk 00:00:56]} {[%emt
00:00:02]} Reb8 {[%clk 00:01:28]} {[%emt 00:00:02]} 21. Qc2 {[%clk 00:00:49]}
{[%emt 00:00:09]} Qb7 {[%clk 00:01:20]} {[%emt 00:00:10]} 22. f4 {[%clk
00:00:39]} {[%emt 00:00:13]} Bg7 {[%clk 00:01:21]} 23. Qf2 {[%clk 00:00:32]}
{[%emt 00:00:09]} Nd7 {[%clk 00:01:16]} {[%emt 00:00:07]} 24. e5 {[%clk
00:00:22]} {[%emt 00:00:12]} dxe5 {[%clk 00:01:11]} {[%emt 00:00:06]} 25. fxe5
{[%clk 00:00:23]} {[%emt 00:00:01]} Nxe5 {[%clk 00:01:12]} 26. Rfd1 {[%clk
00:00:16]} {[%emt 00:00:09]} Qxb3 {[%clk 00:01:06]} {[%emt 00:00:09]} 27. Bxc5
{[%clk 00:00:12]} {[%emt 00:00:06]} Rc8 {[%clk 00:00:53]} {[%emt 00:00:15]} 28.
Bd4 {[%clk 00:00:11]} {[%emt 00:00:03]} Nc4 {[%clk 00:00:31]} {[%emt 00:00:24]}
29. Bxg7 {[%clk 00:00:08]} {[%emt 00:00:04]} Kxg7 {[%clk 00:00:32]} {[%emt
00:00:01]} 30. Rf1 {[%clk 00:00:09]} Ne5 {[%clk 00:00:28]} {[%emt 00:00:05]} 31.
Ne4 {[%clk 00:00:07]} {[%emt 00:00:04]} Ra2 {[%clk 00:00:22]} {[%emt 00:00:09]}
32. Qf4 {[%clk 00:00:04]} {[%emt 00:00:05]} Rxc1 {[%clk 00:00:11]} {[%emt
00:00:13]} 33. Rxc1 {[%clk 00:00:05]} {[%emt 00:00:02]} Nd3 {[%clk 00:00:09]}
{[%emt 00:00:03]} 34. Rf1 {[%clk 00:00:05]} {[%emt 00:00:02]} Nxf4 {[%clk
00:00:10]} {[%emt 00:00:02]} 35. Rxf4 {[%emt 00:00:01]} Qd1+ 0-1

[Event "Blixt-SM 2021"]
[Site "Elite Hotel Marina Plaza, Kungstorget 6, Helsingborg, Sweden"]
[Date "2021.11.14"]
[Round "3.7"]
[White "Storme, Isak"]
[Black "Mauritsson, Sebastian"]
[Result "1-0"]
[TimeControl "3 minutes + 2 seconds per move."]
[WhiteTitle "FM"]
[BlackTitle "FM"]
[WhiteFideId "1728113"]
[BlackFideId "1707892"]
[WhiteElo "2037"]
[BlackElo "2390"]

1. d4 {[%clk 00:03:02]} {[%emt 00:00:02]} d5 {[%clk 00:03:04]} {[%emt
00:00:01]} 2. Bf4 {[%clk 00:03:01]} {[%emt 00:00:02]} Nf6 {[%clk 00:03:03]}
{[%emt 00:00:02]} 3. e3 {[%clk 00:03:01]} {[%emt 00:00:02]} c5 {[%clk
00:03:04]} {[%emt 00:00:02]} 4. Nf3 {[%clk 00:03:01]} {[%emt 00:00:02]} Nc6
{[%clk 00:03:04]} {[%emt 00:00:02]} 5. Nbd2 {[%clk 00:03:01]} {[%emt 00:00:02]}
cxd4 {[%clk 00:03:04]} {[%emt 00:00:02]} 6. exd4 {[%clk 00:03:01]} {[%emt
00:00:01]} Bf5 {[%clk 00:03:04]} {[%emt 00:00:03]} 7. c3 {[%clk 00:02:39]}
{[%emt 00:00:24]} e6 {[%clk 00:03:05]} {[%emt 00:00:01]} 8. Nb3 {[%clk
00:02:38]} {[%emt 00:00:03]} Bd6 {[%clk 00:03:04]} {[%emt 00:00:03]} 9. Bxd6
{[%clk 00:02:33]} {[%emt 00:00:07]} Qxd6 {[%clk 00:03:05]} {[%emt 00:00:02]} 10.
Bd3 {[%clk 00:02:32]} {[%emt 00:00:03]} Bxd3 {[%clk 00:02:52]} {[%emt
00:00:14]} 11. Qxd3 {[%clk 00:02:32]} {[%emt 00:00:02]} Ne4 {[%clk 00:02:51]}
{[%emt 00:00:04]} 12. O-O {[%clk 00:02:29]} {[%emt 00:00:04]} O-O {[%clk
00:02:51]} {[%emt 00:00:03]} 13. Rfe1 {[%clk 00:02:26]} {[%emt 00:00:04]} Rab8
{[%clk 00:02:41]} {[%emt 00:00:12]} 14. a4 {[%clk 00:02:16]} {[%emt 00:00:12]}
b6 {[%clk 00:02:41]} {[%emt 00:00:02]} 15. Nfd2 {[%clk 00:02:00]} {[%emt
00:00:18]} Nxd2 {[%clk 00:02:30]} {[%emt 00:00:14]} 16. Qxd2 {[%clk 00:01:59]}
{[%emt 00:00:02]} Na5 {[%clk 00:02:18]} {[%emt 00:00:15]} 17. Qc2 {[%clk
00:01:43]} {[%emt 00:00:16]} Nc4 {[%clk 00:02:13]} {[%emt 00:00:08]} 18. Nc1
{[%clk 00:01:42]} {[%emt 00:00:03]} Qc6 {[%clk 00:02:08]} {[%emt 00:00:07]} 19.
Nd3 {[%clk 00:01:39]} {[%emt 00:00:05]} a6 {[%clk 00:01:56]} {[%emt 00:00:16]}
20. h4 {[%clk 00:01:25]} {[%emt 00:00:15]} b5 {[%clk 00:01:47]} {[%emt
00:00:11]} 21. axb5 {[%clk 00:01:25]} {[%emt 00:00:02]} axb5 {[%clk 00:01:42]}
{[%emt 00:00:07]} 22. b4 {[%clk 00:01:04]} {[%emt 00:00:22]} Ra8 {[%clk
00:01:33]} {[%emt 00:00:11]} 23. Nc5 {[%clk 00:01:03]} {[%emt 00:00:03]} h6
{[%clk 00:01:24]} {[%emt 00:00:12]} 24. g3 {[%clk 00:00:54]} {[%emt 00:00:11]}
Rfb8 {[%clk 00:01:14]} {[%emt 00:00:12]} 25. Kh2 {[%clk 00:00:52]} {[%emt
00:00:03]} Qe8 {[%clk 00:01:09]} {[%emt 00:00:07]} 26. Qe2 {[%clk 00:00:44]}
{[%emt 00:00:09]} Rxa1 {[%clk 00:01:07]} {[%emt 00:00:05]} 27. Rxa1 {[%clk
00:00:43]} {[%emt 00:00:03]} Ra8 {[%clk 00:01:07]} {[%emt 00:00:01]} 28. Ra2
{[%clk 00:00:40]} {[%emt 00:00:04]} Qd8 {[%clk 00:00:57]} {[%emt 00:00:13]} 29.
Qc2 {[%clk 00:00:34]} {[%emt 00:00:08]} Rxa2 {[%clk 00:00:43]} {[%emt
00:00:16]} 30. Qxa2 {[%clk 00:00:34]} {[%emt 00:00:02]} Qf6 {[%clk 00:00:44]}
31. Kg2 {[%clk 00:00:29]} {[%emt 00:00:07]} Qf5 {[%clk 00:00:40]} {[%emt
00:00:06]} 32. Qa8+ {[%clk 00:00:20]} {[%emt 00:00:11]} Kh7 {[%clk 00:00:41]}
{[%emt 00:00:01]} 33. Nd7 {[%clk 00:00:21]} {[%emt 00:00:01]} Qe4+ {[%clk
00:00:36]} {[%emt 00:00:08]} 34. Kh2 {[%clk 00:00:17]} {[%emt 00:00:05]} h5
{[%clk 00:00:25]} {[%emt 00:00:13]} 35. Nf8+ {[%clk 00:00:15]} {[%emt
00:00:04]} Kh6 {[%clk 00:00:26]} 36. Nd7 {[%clk 00:00:13]} {[%emt 00:00:04]}
Kh7 {[%clk 00:00:17]} {[%emt 00:00:12]} 37. Qd8 {[%clk 00:00:12]} {[%emt
00:00:02]} Qf3 {[%clk 00:00:16]} {[%emt 00:00:04]} 38. Nf8+ {[%clk 00:00:12]}
{[%emt 00:00:02]} Kg8 {[%clk 00:00:13]} {[%emt 00:00:05]} 39. Nxe6+ {[%clk
00:00:12]} {[%emt 00:00:02]} Kh7 {[%clk 00:00:13]} {[%emt 00:00:02]} 40. Ng5+
{[%clk 00:00:12]} {[%emt 00:00:01]} 1-0